Cogmind - Beta 16 @@@ ROGUE MODE // 2026.01.27 @ 20:38:19 Player: quak Result: Destroyed by Autobeam Turret with Autobeam Performance ------------- Evolutions (0) 0 Regions Visited (2) 400 Robots Destroyed (30) 150 Value Destroyed (606) 606 Prototype IDs (4) 80 Alien Tech Used (0) 0 Bonus (0) 0 TOTAL SCORE: 1236 Bonus ------- None Cogmind --------- Core Integrity 0/250 Matter 216/300 Energy 96/100 System Corruption 0% Temperature Cool (8) Movement Treading (160) Location -10/Subcaves Parts ------- > --- POWER (1) -------- (None) > --- PROPULSION (2) --- Light Treads Light Treads > --- UTILITY (2) ------ Large Storage Unit Signal Interpreter > --- WEAPON (2) ------- Shotgun Shotgun > --- INVENTORY (15) --- Ion Engine Ion Engine Light Treads Light Treads Seismic Detector ECM Suite Scrap Shield Scrap Shield Mining Claw Peak State ------------ > --- POWER ------------ Ion Engine > --- PROPULSION ------- Light Treads Light Treads > --- UTILITY ---------- Large Storage Unit Signal Interpreter > --- WEAPON ----------- Shotgun Shotgun > --- INVENTORY -------- Ion Engine Light Treads Light Treads Light Treads Light Treads Seismic Detector ECM Suite Scrap Shield Scrap Shield Shotgun Shotgun Mining Claw [Rating: 11] Favorites ----------- Power Ion Engine Engine Ion Engine Propulsion Aluminum Leg Treads Light Treads Leg Aluminum Leg Utility Seismic Detector Device Seismic Detector Storage Medium Storage Unit Processor Signal Interpreter Weapon Shotgun Energy Gun Medium Laser Ballistic Gun Shotgun Slashing Weapon Mining Claw Build | -11 -10 -10 ------- Run | Yrd Mat Sub Slots Evolved . | . . . Power . | . . . Propulsion . | . . . Utility . | . . . Weapon . | . . . Parts Attached 24 | 7 12 5 Power 2 | 1 . 1 Engine 2 | 1 . 1 Core . | . . . Reactor . | . . . Propulsion 7 | 2 4 1 Treads 4 | . 3 1 Leg 3 | 2 1 . Wheel . | . . . Hover . | . . . Flight . | . . . Utility 7 | 2 5 . Device 3 | 1 2 . Storage 3 | 1 2 . Processor 1 | . 1 . Hackware . | . . . Protection . | . . . Artifact . | . . . Weapon 8 | 2 3 3 Energy Gun 3 | 2 1 . Energy Cannon . | . . . Ballistic Gun 4 | . 2 2 Ballistic Cannon . | . . . Launcher . | . . . Special Weapon . | . . . Impact Weapon . | . . . Slashing Weapon 1 | . . 1 Piercing Weapon . | . . . Special Melee Weapon . | . . . Unidentified Prototypes . | . . . Parts Lost 7 | . 2 5 Power 1 | . . 1 Propulsion 2 | . . 2 Utility 1 | . 1 . Weapon 3 | . 1 2 Highest Loss Streak 5 | . 2 5 To Critical Strikes . | . . . Average Backups 8 | 3 8 10 Power 1 | . 1 1 Propulsion 3 | 1 3 3 Utility 1 | . 1 3 Weapon 2 | . 2 2 Tool/Special . | . . . Unused Backups 9 | . 3 6 Power 2 | . 1 1 Propulsion 2 | . . 2 Utility 4 | . 1 3 Weapon 1 | . 1 . Tool/Special . | . . . Average Slot Usage (%) 98 | . 99 95 Engine 12 | . 13 9 Treads 12 | . 5 28 Leg 15 | . 22 . Device 9 | . 13 . Storage 14 | . 14 14 Processor 4 | . . 14 Energy Gun 3 | . 4 . Ballistic Gun 24 | . 23 26 Peak Build Rating 11 | 7 10 11 Average Rating 9 | 5 9 9 On Entrance 5 | . 7 10 Avg Prop Armor Cover (%) . | . . . Naked Turns . | . . . Heaviest Build 32 | 15 32 31 Greatest Support 40 | 20 40 40 Greatest Overweight (x) 2 | 2 1 . Average Overweight (x) . | . . . Largest Inventory Capacity 15 | 8 15 15 Average Capacity 11 | 7 10 15 Most Carried 15 | 5 10 15 Average Carried 9 | 3 8 12 Final Capacity 15 | 8 15 15 Final Carried 11 | 5 9 11 Class Distribution -------------------- 100% | Mutant Dominant Class ---------------- Mutant | -10/Materials Mutant | -10/Subcaves Resources | -11 -10 -10 ----------- Run | Yrd Mat Sub Matter Collected 748 | 270 280 198 Remotely . | . . . Salvage Created 781 | 70 502 209 Parts 55 | 6 37 12 Haulers Intercepted 2 | . 2 . Recyclers Shooed 2 | 1 1 . Parts Field Recycled . | . . . Retrieved Matter . | . . . Parts Self-Destructed 13 | . . 13 Prevented . | . . . Parts Restored . | . . . Kills | -11 -10 -10 ------- Run | Yrd Mat Sub Combat Hostiles Destroyed 20 | . 11 9 Guns 20 | . 11 9 Classes Destroyed 8 | 1 6 1 Worker 1 | . 1 . Tunneler 5 | 3 2 . Hauler 2 | . 2 . Operator 1 | . 1 . Watcher 1 | . 1 . Swarmer 9 | . 6 3 Grunt 8 | . 5 3 Subdweller 3 | . . 3 Best Kill Streak 5 | 2 5 3 Combat Bots Only 5 | . 5 3 Max Kills in Single Turn 1 | 1 1 1 Gunslinging . | . . . Exploded . | . . . Melee . | . . . Uniques/NPCs Destroyed . | . . . Combat | -11 -10 -10 -------- Run | Yrd Mat Sub Hostile Shots Fired 159 | . 54 105 Missed 57 | . 19 38 Hits 102 | . 35 67 Projectile 102 | . 35 67 Critical Strikes 2 | . . 2 Damage Taken 1489 | . 388 1101 Core 250 | . 64 186 Absorbed by Shields . | . . . Core Remaining (%) 100 | 100 . . Volleys Fired 77 | 19 33 25 Largest 2 | 1 2 2 Hottest 90 | 50 90 46 Shots Fired 135 | 19 66 50 Gun 135 | 19 66 50 Cannon . | . . . Launcher . | . . . Special . | . . . Kinetic 88 | . 38 50 Thermal 33 | 19 14 . Explosive . | . . . Electromagnetic 14 | . 14 . Robot Hit Streak 17 | 4 6 17 Robot Miss Streak 6 | 3 6 4 Penetration Max . | . . . Secondary Targets 2 | . 1 1 Max Gunslinging Chain 1 | . 1 1 Shots Hit Robots 93 | 12 39 42 Core Hits 48 | 4 27 17 Critical Kills 1 | . . 1 Critical Parts Destroyed 1 | . . 1 Critical Strikes 6 | 3 1 2 Burn 4 | 3 1 . Destroy 2 | . . 2 Melee Attacks 1 | . . 1 Impact . | . . . Slashing 1 | . . 1 Piercing . | . . . Sneak Attacks . | . . . Combat Hostiles . | . . . Follow-up Attacks . | . . . Damage Inflicted 1518 | 166 564 788 Guns 1518 | 166 564 788 Cannons . | . . . Explosions . | . . . Melee . | . . . Ramming . | . . . Kinetic 1137 | . 349 788 Thermal 266 | 166 100 . Explosive . | . . . Electromagnetic 115 | . 115 . Impact . | . . . Slashing . | . . . Piercing . | . . . Highest Corruption . | . . . Average Corruption . | . . . Corruption Purged . | . . . Corruption Blocked . | . . . Overload Shots . | . . . Overflow Damage . | . . . Projectiles . | . . . Explosions . | . . . Melee . | . . . Knockbacks . | . . . Impact . | . . . Kinetic . | . . . Secondary . | . . . Self-Inflicted Damage . | . . . Shots . | . . . Rammed . | . . . Targets Rammed . | . . . Kicked . | . . . Crushed . | . . . Highest Temperature 362 | 84 362 254 Average Temperature 111 | 37 154 134 Received Heat Transfer 1038 | . 114 924 Effects 1 | . 1 . Short Circuit 1 | . 1 . Siege Activations . | . . . Martial Activations . | . . . Shielding Activations . | . . . Robots Disrupted . | . . . Combat Hostiles . | . . . Robots Corrupted . | . . . Combat Hostiles . | . . . Parts Fried . | . . . Impact Corruptions . | . . . Robots Melted . | . . . Combat Hostiles . | . . . Parts Melted 3 | 1 1 1 Heat Transferred 1073 | 703 370 . Parts Sabotaged . | . . . Parts Stolen . | . . . Parts Stripped . | . . . Power Chain Reactions . | . . . Alert | -11 -10 -10 ------- Run | Yrd Mat Sub Maximum Alert Level . | . . . Low Security (%) 100 | 100 100 . Level 1 . | . . . Level 2 . | . . . Level 3 . | . . . Level 4 . | . . . Level 5 . | . . . High Security . | . . . Max Security . | . . . Peak Influence 88 | 5 88 . Initial . | . . . Average 15 | . 17 . Influence Increases 619 | 15 374 230 Destroy 0b10 Robot/C 340 | . 220 120 Destroy 0b10 Robot/NC 50 | 15 35 . Destroy Leader 76 | . 56 20 Successful Hack 47 | . 47 . Destroy Structure 1 | . 1 . Lose Combat Pursuer 105 | . 15 90 Influence Decreases 515 | 15 322 178 Entered New Map 26 | . . 26 Time Decay 455 | 15 302 138 Lost Part 34 | . 20 14 Squads Dispatched 1 | . 1 . Investigation . | . . . Extermination . | . . . Reinforcement 1 | . 1 . Assault . | . . . Garrison . | . . . Intercept . | . . . Searches Triggered . | . . . Construction Impeded . | . . . Haulers Reinforced . | . . . Active Scanning Responses . | . . . Cargo Convoy Interrupts . | . . . Stealth | -11 -10 -10 --------- Run | Yrd Mat Sub Distress Signals . | . . . Communications Jammed . | . . . Distress Signals . | . . . Times Spotted 52 | . 31 21 Peak Tracking Total 6 | . 6 6 Tactical Retreats 4 | . 1 3 Traps | -11 -10 -10 ------- Run | Yrd Mat Sub Traps Triggered 3 | . 3 . Indirectly . | . . . Trap Hack Attempts . | . . . Triggered . | . . . Disarmed . | . . . Reprogrammed . | . . . Reused . | . . . Traps Extracted . | . . . Installed . | . . . Triggered . | . . . Machines | -11 -10 -10 ---------- Run | Yrd Mat Sub Machines Disabled . | . . . Max in Single Turn . | . . . Machines Repaired . | . . . Machines Dismantled . | . . . Machines Sabotaged . | . . . Overloaded Fab Kills . | . . . Hacking | -11 -10 -10 --------- Run | Yrd Mat Sub Machines Accessed 7 | . 7 . Terminals 6 | . 6 . Fabricators . | . . . Repair Stations . | . . . Recycling Units 1 | . 1 . Scanalyzers . | . . . Garrison Access . | . . . Total Hacks 23 | . 23 . Successful 10 | . 10 . Failed 13 | . 13 . Catastrophic 3 | . 3 . Database Lockouts . | . . . Manual 20 | . 20 . Terminals 22 | . 22 . Fabricators . | . . . Repair Stations . | . . . Recycling Units 1 | . 1 . Scanalyzers . | . . . Garrison Access . | . . . Terminal Hacks 4 | . 4 . Prototype ID Bank 2 | . 2 . Branch Access Points 1 | . 1 . Locate Traps 1 | . 1 . Fabricator Hacks . | . . . Repair Station Hacks . | . . . Recycling Unit Hacks 1 | . 1 . Report Inventory 1 | . 1 . Scanalyzer . | . . . Garrison Access Hacks . | . . . Unauthorized Hacks 5 | . 5 . Terminals 5 | . 5 . Assimilate 1 | . 1 . Botnet 3 | . 3 . Operators 1 | . 1 . Fabricators . | . . . Repair Stations . | . . . Recycling Units . | . . . Scanalyzers . | . . . Garrison Access . | . . . Data Cores Recovered . | . . . Used . | . . . Hacking Detections 6 | . 6 . Full Trace Events . | . . . Feedback Events . | . . . Feedback Blocked . | . . . Robot Schematics Acquired . | . . . Robots Built . | . . . Authchips . | . . . Time . | . . . Total Robot Build Rating . | . . . Part Schematics Acquired . | . . . Parts Built . | . . . Authchips . | . . . Time . | . . . Total Part Build Rating . | . . . Part Studies Acquired . | . . . Parts Repaired . | . . . Time . | . . . Parts Recycled . | . . . Recycled Matter . | . . . Retrieved Matter . | . . . Retrieved Components . | . . . Parts Scanalyzed . | . . . Part Schematics Acquired . | . . . Parts Damaged . | . . . Bothacking | -11 -10 -10 ------------ Run | Yrd Mat Sub Used RIF Installer . | . . . Robots Hacked . | . . . Non-combat . | . . . Combat . | . . . Robot Hacks Applied . | . . . Relay Couplers Released . | . . . Fabnet Peak Effective % . | . . . Robots Rewired . | . . . Allies Hacked . | . . . Hacks Repelled . | . . . Allies | -11 -10 -10 -------- Run | Yrd Mat Sub Total Allies 1 | . 1 . Largest Group 1 | . 1 1 Highest-Rated Group 10 | . 10 10 Highest-Rated Ally 10 | . 10 10 Total Orders . | . . . Ally Attacks . | . . . Total Damage . | . . . Kills . | . . . Allies Corrupted . | . . . Allies Melted . | . . . Intel | -11 -10 -10 ------- Run | Yrd Mat Sub Active Infowar (turns) 1377 | 39 1338 . Seismic 1377 | 39 1338 . Robot Analysis Total . | . . . Derelict Logs Recovered 2 | . . 2 Drone Launches . | . . . Drone Recoveries . | . . . Exploration | -11 -10 -10 ------------- Run | Yrd Mat Sub Turns Passed 2852 | 158 1911 783 Spaces Moved 1474 | 86 975 413 Core 10 | 10 . . Treads 626 | . 213 413 Legs 838 | 76 762 . Wheels . | . . . Hover . | . . . Flight . | . . . Fastest Speed 50 | 50 120 160 Average Speed 164 | 118 170 160 Slowest Speed 190 | 150 190 160 Overloaded Moves . | . . . Propulsion Burnouts . | . . . Robots Hopped . | . . . Potential Cave-ins . | . . . Cave-ins Triggered . | . . . Exploration Rate (%) 49 | 8 98 43 Regions Visited 2 Branch Regions 1 Pre-discovered Areas 2 | . . 2 Known Exits Taken 1 | . 1 . Unknown Exits Taken 1 | 1 . . Scrap Searched . | . . . Spaces Dug . | . . . Terrain Destroyed . | . . . Melee . | . . . Projectile . | . . . AOE . | . . . Terrain Rammed . | . . . Walls Destroyed . | . . . Machines Disabled . | . . . Actions | -11 -10 -10 --------- Run | Yrd Mat Sub Total 1767 | 120 1164 483 Wait 149 | 3 112 34 Move 1472 | 85 974 413 Hop . | . . . Pick Up 21 | 6 12 3 Fast Attach 14 | 6 8 . Attach 8 | 1 3 4 Detach 4 | . 4 . Swap 9 | . 6 3 Drop 12 | . 12 . Fire 77 | 19 33 25 Melee 1 | . . 1 Ram . | . . . Kick . | . . . Crush . | . . . Escape Stasis . | . . . Rewire . | . . . Trap . | . . . Miscellaneous . | . . . Route ------- -11/Scrapyard -10/Materials (discovered 5 exits: *Mat x3 / *Min / *Sub) -10/Subcaves (discovered 2 exits: *Mat / [*Rec]) History --------- Turn | Location | Event 10 | -11/Scrapyard | Discovered new exit (range 14) 159 | -11/Scrapyard | Entered Materials 240 | -10/Materials | Identified exit to Mines 308 | -10/Materials | Build established: Mutant 544 | -10/Materials | Discovered new exit (range 7) 551 | -10/Materials | Discovered new exit (range 8) 690 | -10/Materials | Discovered new exit (range 3) 1181 | -10/Materials | Discovered new exit (range 10) 2020 | -10/Materials | Identified exit to Materials 2030 | -10/Materials | Identified exit to Subcaves 2070 | -10/Materials | Entered Subcaves 2070 | -10/Subcaves | Accompanied by 1 ally 2071 | -10/Subcaves | Approached by a straggling Scientist 2100 | -10/Subcaves | Learned 4 Materials zone layouts 2109 | -10/Subcaves | Shifting Twisted Machinery released Scrap Shield 2156 | -10/Subcaves | Shifting Twisted Machinery released Sub. Power Source 2224 | -10/Subcaves | Learned location of Zion (-6) 2228 | -10/Subcaves | Discovered new exit (range 8) 2234 | -10/Subcaves | Identified exit to Materials 2237 | -10/Subcaves | Met a Zionite searching for "candidates" 2352 | -10/Subcaves | A swath of the cavern ceiling suddenly collapsed 2554 | -10/Subcaves | Core integrity fell below 50% 2615 | -10/Subcaves | Core integrity fell below 20% 2645 | -10/Subcaves | Lost 5 parts (1p2n2w) 2812 | -10/Subcaves | Discovered new exit (range 15) 2853 | -10/Subcaves | Destroyed by Autobeam Turret with Autobeam Last Messages --------------- 02626_ Acquired 13 matter. 02629_ Acquired 37 matter. 02642_ LP-5Z9(u) builds Twisted Machinery. 02645_ LP-5Z9(u) tweaks Twisted Machinery. 02755_ U8-H8S(u) tweaks Twisted Machinery. 02762_ U8-H8S(u) builds Twisted Machinery. 02812_ EXIT=FOUND 02819_ S-10 Pest destroyed. 02825_ Destroyed Flight Unit. 02827_ Flight Unit fries itself beyond repair. 02828_ S-10 Pest destroyed. 02830_ Flight Unit fries itself beyond repair. 02832_ Lgt. Ion Engine fries itself beyond repair. 02832_ Flight Unit fries itself beyond repair. 02832_ Acquired 27 matter. 02835_ Flight Unit fries itself beyond repair. 02842_ Lgt. Assault Rifle fries itself beyond repair. Map ----- +----------------------------------------------------+ | ????????????????????????????????????????????????# | | ????????????????????????????????????????????????## | | ?????????????????????????????????????????????????# | | ?????????????????????????????????????????????????? | | ?????????????????????????????????????????????????? | | ?????????????????????????????????????????????????? | | ?????????????????????????????????????????????????? | | ?????????????????????????????????????????????????? | | ?????????????????????????????????????????????????? | | ???????????????????????????? ????????????????????? | | ????????????#?????????????? #??????????????????? | | ???????????? ?????????????# #??????????????????? | | ???????????# ????????##??# #??????????????????? | | ??????????#" ???????? ### #??????????????????? | | ??????????#" ???????# #??????????????????? | | ??????#???? ????### #???????????????????? | | ????### ??? ???? #???????????????????? | | ????# #### #???# #??????????????????? | | ???## #??## ?????????????????????? | | ?### #### ????????????????????????? | | ## ########????????????????????? | | % #" """#????????????????????? | | % ## "#????????????????????? | | ## "#????????????????????? | | ??# ## t""##???????????????????? | | ??# ### @ <#??????############## | | ??# #### t""##??????# # ## ## | | ??# ## ### #### "#???????# | | # ???# #### "#???????# | | ##" """#???????# ## | | ## ########???##### ### # | | ?## ########### ### # | | ## #??## ## # # ### | | ??## #????# " "" #### | | ???### #?????## # """ "" ##### | | ?????####???????####"" ###"## """""##??# ## | | ???????????????????#"" ##?##### ""###???### ### | | ???????????????????##" ##????## "#???????## #?? | | ??????????????????##"" # #### ?""""#????????# #?? | | ??????????????????#""" """"" """""######## ##? | | ??????????????????# """ """" """""" ## | | ??????????????????# """ "###### """"" # | | ??????????????????# ######???? # # | | ??????????????????##"#??????????? ??########### | | ???????????????????##????????????###????????????## | | ?????????????????????????????????????????????????? | | ?????????????????????????????????????????????????? | | ?????????????????????????????????????????????????? | | ?????????????????????????????????????????????????? | | ?????????????????????????????????????????????????? | +----------------------------------------------------+ Best States ------------- Heat Dissipation 25 Energy Generation 10 Energy Capacity 250 Matter Stores 300 Matter Capacity 300 Sight Range 16 Terrain Scan Density 10 Evasion (%) 55 Recoil Reduction 2 Item Schematics ----------------- None Robot Schematics ------------------ None Fabricated ------------ Nothing Repaired ---------- Nothing Studied --------- None Alien Tech Used ----------------- None Achievements -------------- None Challenges ------------ None Game ------ Seed ProtonDisruptorSuite Manual? 0 Play Time 00:19:06 Cumulative 27.9 hours Start 2026.01.27 @ 20:19:58 End 2026.01.27 @ 20:38:19 Sessions 1 Manual Loads 0 Difficulty Rogue Special Mode None Game No. 54 Rogue 54 Adventurer 0 Explorer 0 Win Type - Total 3 Types 3/0/0/0/0/0/0/0/0/0 Lore% 22 Gallery% 22 Achievement% 21 Wizard Run 0 Options --------- Layout 1 ASCII 0 Keyboard 1 Movement Vi Keybinds 0 Fullscreen 1 Font 32/SmallcapsGlow Map View 50x40 Zoom Use 0% Tactical HUD 1 Map Filters NONE Filters NONE Steam 1 RUN: 2865ac31-0a22-4e81-b5da-5082ddec884c